fUSD/lending_fUSD_20241023
["ID","MTS","AMOUNT","RATE_DAILY","PERIOD"]
[340702711,1729695085422,-500.0,0.00051167,120]
[340702712,1729695085431,-583.75,0.00051167,120]
[340702713,1729695085441,-150.0,0.00051186,7]
[340702714,1729695085450,-150.0,0.00051187,7]
[340702715,1729695085460,-150.0,0.00051191,14]
[340702716,1729695085469,-150.0,0.00051212,7]
[340702717,1729695085478,-150.0,0.00051225,7]
[340702718,1729695085488,-500.0,0.00051237,120]
[340702719,1729695085498,-1038.31,0.00051237,120]
[340702720,1729695085509,-500.0,0.00051237,120]
[340702721,1729695085518,-1396.2,0.00051237,120]
[340702722,1729695085528,-2499.88,0.00051237,120]
[340702723,1729695085539,-581.14,0.00051237,120]
[340702724,1729695085549,-278.01795823,0.00051237,120]
[340702725,1729695085559,-2403.29,0.00051237,120]
[340702726,1729695085568,-2393.31,0.00051237,120]
[340702727,1729695085578,-1078.45,0.00051237,120]
[340702728,1729695085587,-1462.44,0.00051237,120]
[340702729,1729695085597,-865.81,0.00051237,120]
[340702730,1729695085606,-596.71,0.00051237,120]
[340702731,1729695085616,-1434.43,0.00051237,120]
[340702732,1729695085626,-539.87,0.00051237,120]
[340702733,1729695085636,-6123.06,0.00051237,120]
[340702734,1729695085646,-643.52118221,0.00051237,120]
[340702735,1729695085655,-500.0,0.00051237,120]
[340702736,1729695085667,-500.0,0.00051237,120]
[340702737,1729695085677,-500.0,0.00051238,120]
[340702738,1729695085687,-551.7,0.00051238,120]
[340702739,1729695085698,-500.0,0.00051238,120]
[340702740,1729695085708,-500.0,0.00051238,120]
[340702741,1729695085717,-1279.4,0.00051238,120]
[340702742,1729695085727,-541.69,0.00051238,120]
[340702743,1729695085737,-500.0,0.00051238,120]
[340702744,1729695085746,-500.0,0.00051238,120]
[340702745,1729695085756,-500.0,0.00051238,120]
[340702746,1729695085765,-500.0,0.00051238,120]
[340702747,1729695085775,-504.60403883,0.00051238,120]
[340702748,1729695085784,-616.23549817,0.00051238,120]
[340702749,1729695085793,-500.0,0.00051238,120]
[340702750,1729695085802,-800.5,0.00051238,120]
[340702751,1729695085812,-829.74,0.00051238,120]
[340702752,1729695085821,-500.0,0.00051238,120]
[340702753,1729695085831,-500.0,0.00051238,120]
[340702754,1729695085841,-831.97,0.00051238,120]
[340702755,1729695085850,-500.0,0.00051238,120]
[340702756,1729695085859,-3068.62,0.00051238,120]
[340702757,1729695085868,-2062.02,0.00051238,120]
[340702758,1729695085879,-636.42,0.00051238,120]
[340702759,1729695085888,-500.0,0.00051238,120]
[340702760,1729695085897,-632.86,0.00051238,120]
[340702761,1729695085907,-500.0,0.00051238,120]
[340702762,1729695085917,-420.79279543,0.00051238,120]
[340702763,1729695085927,-521.15,0.00051238,120]
[340702764,1729695085936,-500.0,0.00051238,120]
[340702765,1729695085945,-500.0,0.00051238,120]
[340702766,1729695085955,-1010.38,0.00051238,120]
[340702767,1729695085964,-500.0,0.00051238,120]
[340702768,1729695085974,-500.0,0.00051238,120]
[340702769,1729695085983,-829.76,0.00051238,120]
[340702770,1729695085992,-710.82,0.00051238,120]
[340702771,1729695086001,-500.0,0.00051238,120]
[340702772,1729695086011,-500.0,0.00051238,120]
[340702773,1729695086021,-500.0,0.00051238,120]
[340702774,1729695086030,-500.0,0.00051238,120]
[340702775,1729695086039,-500.0,0.00051238,120]
[340702776,1729695086050,-500.0,0.00051238,120]
[340702777,1729695086060,-500.0,0.00051238,120]
[340702778,1729695086070,-500.0,0.00051238,120]
[340702779,1729695086079,-500.0,0.00051238,120]
[340702780,1729695086241,-417.88751569,0.00051238,120]
[340702781,1729695086254,-2091.95,0.00051238,120]
[340702782,1729695086263,-285.083403,0.00051238,120]
[340702783,1729695086274,-405.89748,0.00051238,120]
[340702784,1729695086283,-15318.09,0.00051238,120]
[340702785,1729695086292,-500.0,0.00051238,120]
[340702786,1729695086301,-500.0,0.00051238,120]
[340702787,1729695086311,-696.58,0.00051238,120]
[340702788,1729695086320,-500.0,0.00051238,120]
[340702789,1729695086330,-500.0,0.00051238,120]
[340702790,1729695086340,-500.0,0.00051238,120]
[340702791,1729695086350,-956.6,0.00051238,120]
[340702792,1729695086359,-500.0,0.00051238,120]
[340702793,1729695086369,-500.0,0.00051238,120]
[340702794,1729695086378,-500.0,0.00051238,120]
[340702795,1729695086388,-1237.23,0.00051238,120]
[340702796,1729695086398,-500.0,0.00051238,120]
[340702797,1729695086407,-500.0,0.00051238,120]
[340702798,1729695086417,-500.0,0.00051238,120]
[340702799,1729695086426,-500.0,0.00051238,120]
[340702800,1729695086435,-500.0,0.00051238,120]
[340702801,1729695086444,-500.0,0.00051238,120]
[340702802,1729695086454,-500.0,0.00051238,120]
[340702803,1729695086464,-5655.78,0.00051238,21]
[340702804,1729695086474,-500.0,0.00051238,120]
[340702805,1729695086484,-500.0,0.00051238,120]
[340702806,1729695086493,-500.0,0.00051238,120]
[340702807,1729695086503,-500.0,0.00051238,120]
[340702808,1729695086513,-500.0,0.00051238,120]
[340702809,1729695086523,-1801.94,0.00051238,120]
[340702810,1729695086533,-1551.48,0.00051238,120]
[340702811,1729695086542,-500.0,0.00051238,120]
[340702812,1729695086552,-946.91,0.00051238,120]
[340702813,1729695086562,-2527.52,0.00051238,120]
[340702814,1729695086571,-1036.64,0.00051238,120]
[340702815,1729695086581,-500.0,0.00051238,120]
[340702816,1729695086592,-500.0,0.00051238,120]
[340702817,1729695086601,-2104.19,0.00051238,120]
[340702818,1729695086610,-500.0,0.00051238,120]
[340702819,1729695086620,-500.0,0.00051238,120]
[340702820,1729695086629,-500.0,0.00051238,120]
[340702821,1729695086639,-500.0,0.00051238,120]
[340702822,1729695086648,-514.44,0.00051238,120]
[340702823,1729695086657,-500.0,0.00051239,120]
[340702824,1729695086666,-500.0,0.00051239,120]
[340702825,1729695086676,-500.0,0.00051239,120]
[340702826,1729695086685,-500.0,0.00051239,120]
[340702827,1729695086695,-546.83,0.00051239,120]
[340702828,1729695086704,-527.01,0.00051239,120]
[340702829,1729695086714,-633.57,0.00051239,120]
[340702830,1729695086723,-500.0,0.00051239,120]
[340702831,1729695086732,-500.0,0.00051239,120]
[340702832,1729695086742,-548.76,0.00051239,120]
[340702833,1729695086751,-500.0,0.00051239,120]
[340702834,1729695086760,-500.0,0.00051239,120]
[340702835,1729695086769,-500.0,0.00051239,120]
[340702836,1729695086779,-500.0,0.00051239,120]
[340702837,1729695086789,-500.0,0.00051239,120]
[340702838,1729695086798,-500.0,0.00051239,120]
[340702839,1729695086807,-500.0,0.00051239,120]
[340702840,1729695086819,-552.51,0.00051239,120]
[340702841,1729695086828,-500.0,0.00051239,120]
[340702842,1729695086839,-1010.74,0.00051239,120]
[340702843,1729695086851,-226.36,0.00051239,120]
[340702844,1729695086860,-500.0,0.00051239,120]
[340702845,1729695086870,-500.0,0.00051239,120]
[340702846,1729695086879,-500.0,0.00051239,120]
[340702847,1729695086888,-208.37603662,0.00051239,120]
[340702848,1729695086898,-664.87,0.00051239,120]
[340702849,1729695086908,-500.0,0.00051239,120]
[340702850,1729695086917,-500.0,0.00051239,120]
[340702851,1729695086926,-1025.87,0.00051239,120]
[340702852,1729695086936,-500.0,0.00051239,120]
[340702853,1729695086946,-500.0,0.00051239,120]
[340702854,1729695086955,-205.20664776,0.00051239,120]
[340702855,1729695086965,-500.0,0.00051239,120]
[340702856,1729695086974,-500.0,0.00051239,120]
[340702857,1729695086984,-602.94668264,0.00051239,120]
[340702858,1729695086993,-500.0,0.00051239,120]
[340702859,1729695087003,-500.0,0.00051239,120]
[340702860,1729695087013,-500.0,0.00051239,120]
[340702861,1729695087022,-500.0,0.00051239,120]
[340702862,1729695087032,-588.83,0.00051239,120]
[340702863,1729695087042,-500.0,0.00051239,120]
[340702864,1729695087052,-2381.92,0.00051239,120]
[340702865,1729695087062,-582.851252,0.00051239,120]
[340702866,1729695087071,-500.0,0.00051239,120]
[340702867,1729695087081,-1507.06,0.00051239,120]
[340702868,1729695087093,-500.0,0.00051239,120]
[340702869,1729695087104,-3850.95,0.00051239,120]
[340702870,1729695087114,-500.0,0.00051239,120]
[340702871,1729695087124,-500.0,0.00051239,120]
[340702872,1729695087134,-618.02,0.00051239,120]
[340702873,1729695087144,-500.0,0.00051239,120]
[340702874,1729695087155,-500.0,0.00051239,120]
[340702875,1729695087165,-500.0,0.00051239,120]
[340702876,1729695087174,-1937.11,0.00051239,120]
[340702877,1729695087184,-2061.54,0.00051239,120]
[340702878,1729695087194,-500.0,0.00051239,120]
[340702879,1729695087204,-500.0,0.00051239,120]
[340702880,1729695087214,-2726.69,0.00051239,120]
[340702881,1729695087223,-500.0,0.00051239,120]
[340702882,1729695087232,-500.0,0.00051239,120]
[340702883,1729695087242,-812.34,0.00051239,120]
[340702884,1729695087252,-840.01,0.00051239,120]
[340702885,1729695087262,-1694.03,0.00051239,120]
[340702886,1729695087271,-1245.48,0.00051239,120]
[340702887,1729695087281,-500.0,0.00051239,120]
[340702888,1729695087291,-500.0,0.00051239,120]
[340702889,1729695087301,-1202.0,0.00051239,120]
[340702890,1729695087310,-2671.09,0.00051239,120]
[340702891,1729695087320,-500.0,0.00051239,120]
[340702892,1729695087330,-1000.0,0.00051247,2]
[340702893,1729695087342,-1000.0,0.00051247,2]
[340702894,1729695087351,-1000.0,0.00051247,2]
[340702895,1729695087362,-1000.0,0.00051247,2]
[340702896,1729695087372,-1000.0,0.00051247,2]
[340702897,1729695087381,-1000.0,0.00051247,2]
[340702898,1729695087392,-1000.0,0.00051247,2]
[340702899,1729695087402,-1000.0,0.00051247,2]
[340702900,1729695087411,-1000.0,0.00051247,2]
[340702901,1729695087421,-1000.0,0.00051247,2]
[340702902,1729695087431,-1000.0,0.00051247,2]
[340702903,1729695087441,-1000.0,0.00051247,2]
[340702904,1729695087451,-892.8708,0.00051247,2]
[340702905,1729695087461,-1500.0,0.0005125,14]
[340702906,1729695087471,-150.0,0.0005126,14]
[340702907,1729695087480,-150.0,0.00051276,7]
[340702908,1729695087490,-150.0,0.00051288,14]
[340702909,1729695087500,-171.76811577,0.00051293,28]
[340702910,1729695087510,-2110.0,0.00051294,2]
[340702911,1729695087520,-500.0,0.00051339,120]
[340702912,1729695087529,-517.46,0.00051339,120]
[340702913,1729695087538,-500.0,0.00051339,120]
[340702914,1729695087547,-500.0,0.00051339,120]
[340702915,1729695087557,-500.0,0.00051339,120]
[340702916,1729695087567,-688.94,0.00051339,120]
[340702917,1729695087576,-3187.68,0.00051339,120]
[340702918,1729695087585,-720.0,0.00051339,120]
[340702919,1729695087595,-1671.38,0.00051339,120]
[340702920,1729695087605,-1870.15,0.00051339,120]
[340702921,1729695087615,-157.15324,0.00051339,120]
[340702922,1729695087624,-548.44,0.00051339,120]
[340702923,1729695087634,-639.46,0.00051339,120]
[340702924,1729695087644,-500.0,0.00051339,120]
[340702925,1729695087653,-949.63,0.00051339,120]
[340702926,1729695087663,-5070.58,0.00051339,120]
[340702927,1729695087672,-2860.91,0.00051339,120]
[340702928,1729695087681,-4127.93,0.00051339,120]
[340702929,1729695087691,-500.0,0.0005134,120]
[340702930,1729695087700,-213.24352431,0.0005134,120]
[340702931,1729695087709,-500.0,0.0005134,120]
[340702932,1729695087718,-500.0,0.0005134,120]
[340702933,1729695087727,-500.0,0.0005134,120]
[340702934,1729695087737,-500.0,0.0005134,120]
[340702935,1729695087746,-500.0,0.0005134,120]
[340702936,1729695087755,-500.0,0.0005134,120]
[340702937,1729695087765,-500.0,0.0005134,120]
[340702938,1729695087774,-500.0,0.0005134,120]
[340702939,1729695087783,-500.0,0.0005134,120]
[340702940,1729695087793,-500.0,0.0005134,120]
[340702941,1729695087802,-500.0,0.0005134,120]
[340702942,1729695087811,-500.0,0.0005134,120]
[340702943,1729695087824,-500.0,0.0005134,120]
[340702944,1729695087834,-588.39585165,0.0005134,120]
[340702945,1729695087845,-500.0,0.0005134,120]
[340702946,1729695087854,-704.8,0.0005134,120]
[340702947,1729695087866,-851.17,0.0005134,120]
[340702948,1729695087876,-500.0,0.0005134,120]
[340702949,1729695087887,-1610.91,0.0005134,120]
[340702950,1729695087898,-500.0,0.0005134,120]
[340702951,1729695087907,-2404.26,0.0005134,120]
[340702952,1729695087916,-500.0,0.0005134,120]
[340702953,1729695087925,-2023.4,0.0005134,120]
[340702954,1729695087935,-610.2,0.0005134,120]
[340702955,1729695087944,-1452.47,0.0005134,120]
[340702956,1729695087953,-831.56,0.0005134,120]
[340702957,1729695087963,-500.0,0.0005134,120]
[340702958,1729695087972,-623.53,0.0005134,120]
[340702959,1729695087982,-500.0,0.0005134,120]
[340702960,1729695087991,-495.97073763,0.0005134,120]
[340702961,1729695088000,-777.0,0.0005134,120]
[340702962,1729695088010,-590.11,0.0005134,120]
[340702963,1729695088019,-150.0,0.00051366,7]
[340702964,1729695088028,-177.79701645,0.000514,44]
[340702965,1729695088037,-1131.0,0.000514,7]
[340702966,1729695088047,-150.0,0.00051408,14]
[340702967,1729695088057,-500.0,0.00051413,120]
[340702968,1729695088066,-500.0,0.00051413,120]
[340702969,1729695088076,-2583.882418,0.00051428,120]
[340702970,1729695088086,-500.0,0.00051428,120]
[340702971,1729695088097,-722.51,0.00051428,120]
[340702972,1729695088106,-1345.84,0.00051428,120]
[340702973,1729695088115,-1084.74,0.00051428,120]
[340702974,1729695088125,-500.0,0.00051428,120]
[340702975,1729695088134,-500.0,0.00051428,120]
[340702976,1729695088143,-500.0,0.00051428,120]
[340702977,1729695088153,-500.0,0.00051428,120]
[340702978,1729695088164,-1845.24,0.00051428,120]
[340702979,1729695088175,-841.4,0.00051428,120]
[340702980,1729695088185,-500.0,0.00051428,120]
[340702981,1729695088195,-678.77,0.00051428,120]
[340702982,1729695088205,-500.0,0.00051428,120]
[340702983,1729695088214,-564.76,0.00051428,120]
[340702984,1729695088223,-550.03,0.00051428,120]
[340702985,1729695088232,-500.0,0.00051428,120]
[340702986,1729695088241,-531.72,0.00051428,120]
[340702987,1729695088251,-500.0,0.00051428,120]
[340702988,1729695088260,-1168.65,0.00051428,120]
[340702989,1729695088269,-500.0,0.00051428,120]
[340702990,1729695088278,-500.0,0.00051428,120]
[340702991,1729695088287,-500.0,0.00051428,120]
[340702992,1729695088298,-500.0,0.00051428,120]
[340702993,1729695088307,-500.0,0.00051428,120]
[340702994,1729695088316,-534.68046949,0.00051428,120]
[340702995,1729695088326,-500.0,0.00051428,120]
[340702996,1729695088335,-500.0,0.00051428,120]
[340702997,1729695088348,-582.29,0.00051428,120]
[340702998,1729695088357,-500.0,0.00051428,120]
[340702999,1729695088366,-500.0,0.00051428,120]
[340703000,1729695088375,-500.0,0.00051428,120]
[340703001,1729695088384,-500.0,0.00051428,120]
[340703002,1729695088393,-500.0,0.00051428,120]
[340703003,1729695088402,-500.0,0.00051428,120]
[340703004,1729695088411,-500.0,0.00051428,120]
[340703005,1729695088421,-500.0,0.00051428,120]
[340703006,1729695088430,-500.0,0.00051428,120]
[340703007,1729695088439,-500.0,0.00051428,120]
[340703008,1729695088448,-500.0,0.00051428,120]
[340703009,1729695088458,-500.0,0.00051428,120]
[340703010,1729695088467,-500.0,0.00051428,120]
[340703011,1729695088475,-370.44588188,0.00051428,120]
[340703012,1729695088485,-500.0,0.00051428,120]
[340703013,1729695088494,-500.0,0.00051428,120]
[340703014,1729695088504,-500.0,0.00051428,120]
[340703015,1729695088514,-735.4,0.00051428,120]
[340703016,1729695088524,-350.75752683,0.00051428,120]
[340703017,1729695088534,-868.01,0.00051428,7]
[340703018,1729695088543,-500.0,0.00051428,120]
[340703019,1729695088552,-1768.35,0.00051428,120]
[340703020,1729695088562,-500.0,0.00051428,120]
[340703021,1729695088572,-500.0,0.00051428,120]
[340703022,1729695088581,-500.0,0.00051428,120]
[340703023,1729695088592,-812.19,0.00051428,120]
[340703024,1729695088602,-500.0,0.00051428,120]
[340703025,1729695088611,-500.0,0.00051428,120]
[340703026,1729695088620,-500.0,0.00051428,120]
[340703027,1729695088630,-521.61,0.00051428,120]
[340703028,1729695088639,-500.0,0.00051428,120]
[340703029,1729695088648,-641.46,0.00051428,120]
[340703030,1729695088657,-500.0,0.00051428,120]
[340703031,1729695088666,-500.0,0.00051428,120]
[340703032,1729695088676,-500.0,0.00051428,120]
[340703033,1729695088685,-683.15,0.00051428,120]
[340703034,1729695088694,-500.0,0.00051428,120]
[340703035,1729695088702,-500.0,0.00051428,120]
[340703036,1729695088711,-500.0,0.00051428,120]
[340703037,1729695088721,-500.0,0.00051428,120]
[340703038,1729695088732,-500.0,0.00051428,120]
[340703039,1729695088742,-500.0,0.00051428,120]
[340703040,1729695088752,-534.35,0.00051428,120]
[340703041,1729695088763,-500.0,0.00051428,120]
[340703042,1729695088772,-549.24,0.00051428,120]
[340703043,1729695088928,-947.82,0.00051428,120]
[340703044,1729695088940,-717.45,0.00051428,120]
[340703045,1729695088951,-500.0,0.00051428,120]
[340703046,1729695088962,-537.71989589,0.00051428,120]
[340703047,1729695088971,-500.0,0.00051428,120]
[340703048,1729695088981,-500.0,0.00051428,120]
[340703049,1729695088992,-500.0,0.00051428,120]
[340703050,1729695089003,-500.0,0.00051428,120]
[340703051,1729695089013,-500.0,0.00051428,120]
[340703052,1729695089022,-500.0,0.00051428,120]
[340703053,1729695089031,-500.0,0.00051428,120]
[340703054,1729695089040,-500.77024058,0.00051428,120]
[340703055,1729695089049,-500.0,0.00051428,120]
[340703056,1729695089058,-500.0,0.00051428,120]
[340703057,1729695089067,-500.0,0.00051428,120]
[340703058,1729695089076,-500.0,0.00051428,120]
[340703059,1729695089085,-500.0,0.00051428,120]
[340703060,1729695089096,-500.0,0.00051428,120]
[340703061,1729695089105,-500.0,0.00051428,120]
[340703062,1729695089114,-909.83,0.00051428,120]
[340703063,1729695089123,-500.0,0.00051428,120]
[340703064,1729695089132,-500.0,0.00051428,120]
[340703065,1729695089142,-500.0,0.00051428,120]
[340703066,1729695089151,-500.0,0.00051428,120]
[340703067,1729695089160,-500.0,0.00051428,120]
[340703068,1729695089169,-810.49,0.00051428,120]
[340703069,1729695089179,-500.0,0.00051428,120]
[340703070,1729695089188,-500.0,0.00051428,120]
[340703071,1729695089197,-500.0,0.00051428,120]
[340703072,1729695089207,-638.91,0.00051428,120]
[340703073,1729695089216,-500.0,0.00051428,120]
[340703074,1729695089225,-500.0,0.00051428,120]
[340703075,1729695089234,-500.0,0.00051428,120]
[340703076,1729695089243,-500.0,0.00051428,120]
[340703077,1729695089252,-500.0,0.00051428,120]
[340703078,1729695089262,-599.19535023,0.00051428,120]
[340703079,1729695089271,-424.95482719,0.00051428,120]
[340703080,1729695089280,-500.0,0.00051428,120]
[340703081,1729695089290,-500.0,0.00051428,120]
[340703082,1729695089300,-500.0,0.00051428,120]
[340703083,1729695089310,-500.0,0.00051428,120]
[340703084,1729695089320,-500.0,0.00051428,14]
[340703085,1729695089329,-500.0,0.00051428,120]
[340703086,1729695089339,-500.0,0.00051428,120]
[340703087,1729695089349,-500.0,0.00051428,120]
[340703088,1729695089358,-500.0,0.00051428,120]
[340703089,1729695089368,-500.0,0.00051428,120]
[340703090,1729695089377,-500.0,0.00051428,120]
[340703091,1729695089386,-500.0,0.00051428,120]
[340703092,1729695089396,-500.0,0.00051428,120]
[340703093,1729695089405,-500.0,0.00051428,120]
[340703094,1729695089414,-571.70206667,0.00051428,120]
[340703095,1729695089423,-500.0,0.00051428,120]
[340703096,1729695089433,-1263.1,0.00051428,120]
[340703097,1729695089442,-500.0,0.00051428,120]
[340703098,1729695089451,-500.0,0.00051428,120]
[340703099,1729695089462,-500.0,0.00051428,120]
[340703100,1729695089471,-564.29,0.00051428,120]
[340703101,1729695089480,-500.0,0.00051428,120]
[340703102,1729695089489,-557.88,0.00051428,120]
[340703103,1729695089499,-500.0,0.00051428,120]
[340703104,1729695089509,-500.0,0.00051428,120]
[340703105,1729695089519,-500.0,0.00051428,120]
[340703106,1729695089528,-686.88,0.00051428,120]
[340703107,1729695089538,-585.56,0.00051428,120]
[340703108,1729695089547,-500.0,0.00051428,120]
[340703109,1729695089557,-500.0,0.00051428,120]
[340703110,1729695089566,-500.0,0.00051428,120]
[340703111,1729695089576,-676.0,0.00051428,120]
[340703112,1729695089586,-500.0,0.00051428,120]
[340703113,1729695089602,-500.0,0.00051428,120]
[340703114,1729695089611,-500.0,0.00051428,120]
[340703115,1729695089620,-659.49,0.00051428,120]
[340703116,1729695089629,-500.0,0.00051428,120]
[340703117,1729695089638,-500.0,0.00051428,120]
[340703118,1729695089647,-514.17387574,0.00051428,120]
[340703119,1729695089657,-1865.84,0.00051428,120]
[340703120,1729695089666,-500.0,0.00051428,120]
[340703121,1729695089675,-500.0,0.00051428,120]
[340703122,1729695089684,-495.41577106,0.00051429,120]
[340703123,1729695089693,-500.0,0.00051429,120]
[340703124,1729695089702,-340.83226285,0.00051429,7]
[340703125,1729695089711,-500.0,0.00051429,120]
[340703126,1729695089720,-500.0,0.00051429,5]
[340703127,1729695089730,-500.0,0.00051429,120]
[340703128,1729695089740,-575.47434767,0.00051429,120]
[340703129,1729695089750,-600.32565451,0.00051429,2]
[340703130,1729695089760,-162.56028177,0.00051429,120]
[340703131,1729695089769,-500.0,0.00051429,120]
[340703132,1729695089779,-537.46,0.00051429,120]
[340703133,1729695089790,-500.0,0.00051429,120]
[340703134,1729695089800,-500.0,0.00051429,120]
[340703135,1729695089810,-500.0,0.00051429,120]
[340703136,1729695089825,-662.0,0.00051429,120]
[340703137,1729695089834,-791.08,0.00051429,120]
[340703138,1729695089844,-500.0,0.00051429,120]
[340703139,1729695089853,-500.0,0.00051429,120]
[340703140,1729695089863,-500.0,0.00051429,120]
[340703141,1729695089874,-763.78,0.00051429,120]
[340703142,1729695089883,-500.0,0.00051429,120]
[340703143,1729695089893,-500.0,0.00051429,120]
[340703144,1729695089904,-571.59,0.00051429,120]
[340703145,1729695089913,-500.0,0.00051429,120]
[340703146,1729695089923,-500.0,0.00051429,120]
[340703147,1729695089932,-500.0,0.00051429,120]
[340703148,1729695089942,-500.0,0.00051429,120]
[340703149,1729695089951,-500.0,0.00051429,120]
[340703150,1729695089961,-500.0,0.00051429,120]
[340703151,1729695089971,-500.0,0.00051429,120]
[340703152,1729695089980,-500.0,0.00051429,120]
[340703153,1729695089992,-805.88,0.00051429,120]
[340703154,1729695090003,-500.0,0.00051429,120]
[340703155,1729695090013,-500.0,0.00051429,120]
[340703156,1729695090023,-500.0,0.00051429,120]
[340703157,1729695090033,-639.26,0.0005143,120]
[340703158,1729695090044,-639.26,0.0005143,120]
[340703159,1729695090054,-639.26,0.0005143,120]
[340703160,1729695090064,-639.26,0.0005143,120]
[340703161,1729695090074,-639.34050727,0.0005143,120]
[340703162,1729695090086,-583.75,0.0005143,120]
[340703163,1729695090098,-583.75,0.0005143,120]
[340703164,1729695090110,-583.75,0.0005143,120]
[340703165,1729695090120,-583.75,0.0005143,120]
[340703166,1729695090129,-583.80374386,0.0005143,120]
[340703167,1729695090139,-150.0,0.00051433,7]
[340703168,1729695090149,-15812.93028412,0.00051438,15]
[340703169,1729695090160,-500.0,0.0005144,120]
[340703170,1729695090171,-500.0,0.0005144,120]
[340703171,1729695090180,-633.36,0.0005144,120]
[340703172,1729695090189,-674.13,0.0005144,120]
[340703173,1729695090201,-500.0,0.0005144,120]
[340703174,1729695090212,-1233.24,0.0005144,7]
[340703175,1729695090222,-500.0,0.0005144,120]
[340703176,1729695090232,-500.0,0.0005144,120]
[340703177,1729695090243,-500.0,0.0005144,120]
[340703178,1729695090255,-500.0,0.0005144,60]
[340703179,1729695090266,-500.0,0.0005144,120]
[340703180,1729695090275,-500.0,0.0005144,120]
[340703181,1729695090286,-500.0,0.0005144,120]
[340703182,1729695090296,-500.0,0.0005144,120]
[340703183,1729695090306,-500.0,0.0005144,120]
[340703184,1729695090315,-500.0,0.0005144,120]
[340703185,1729695090326,-500.0,0.0005144,120]
[340703186,1729695090336,-500.0,0.0005144,120]
[340703187,1729695090346,-500.0,0.0005144,120]
[340703188,1729695090356,-500.0,0.0005144,120]
[340703189,1729695090365,-500.0,0.0005144,120]
[340703190,1729695090375,-500.0,0.0005144,120]
[340703191,1729695090385,-500.0,0.0005144,120]
[340703192,1729695090394,-500.0,0.0005144,120]
[340703193,1729695090404,-623.29,0.0005144,120]
[340703194,1729695090415,-204.58266485,0.0005144,120]
[340703195,1729695090424,-500.0,0.0005144,120]
[340703196,1729695090434,-354.18271692,0.0005144,120]
[340703197,1729695090443,-502.61695503,0.0005144,120]
[340703198,1729695090452,-500.0,0.0005144,120]
[340703199,1729695090461,-500.0,0.0005144,120]
[340703200,1729695090471,-285.09153574,0.0005144,120]
[340703201,1729695090480,-500.0,0.0005144,120]
[340703202,1729695090489,-616.53,0.0005144,120]
[340703203,1729695090502,-500.0,0.0005144,120]
[340703204,1729695090511,-500.0,0.0005144,120]
[340703205,1729695090520,-500.0,0.0005144,120]
[340703206,1729695090530,-500.0,0.0005144,120]
[340703207,1729695090539,-533.17,0.0005144,120]
[340703208,1729695090549,-606.57720231,0.0005144,2]
[340703209,1729695090560,-557.53,0.0005144,120]
[340703210,1729695090569,-500.0,0.0005144,2]